bitfinex/quotes_ETHUSD_20251023
["timestamp","ask_amount","ask_price","bid_price","bid_amount"]
[1761249944784,0.1,3853.1,3852.9,3.9796]
[1761249947226,0.1,3853.1,3853.0,3.85]
[1761249947391,2.69531286,3853.1,3853.0,3.85]
[1761249947589,0.1,3853.1,3853.0,3.85]
[1761249947797,0.001,3853.1,3853.0,3.85]
[1761249948053,3.4,3853.1,3853.0,3.85]
[1761249948315,3.499,3853.1,3853.0,3.85]
[1761249948486,6.09431286,3853.1,3853.0,3.85]
[1761249948689,0.001,3853.1,3853.0,3.85]
[1761249949011,3.399,3853.1,3853.0,3.85]
[1761249949314,0.001,3853.1,3853.0,6.44538022]
[1761249949486,2.119,3853.1,3853.0,7.29916104]
[1761249949682,0.001,3853.1,3853.0,6.84476104]
[1761249949889,0.001,3853.1,3853.0,6.57498022]
[1761249950891,0.001,3853.1,3853.0,7.02938022]
[1761249951108,0.001,3853.1,3853.0,6.57498022]
[1761249951983,0.001,3853.1,3853.0,3.9796]
[1761249953000,0.1,3853.1,3853.0,3.9796]
[1761249953602,0.1,3853.1,3853.0,3.85]
[1761249954100,0.001,3853.1,3853.0,6.44538022]
[1761249954487,3.097,3853.1,3853.0,3.85]
[1761249958031,4.6522,3853.1,3853.0,3.852]
[1761249958232,7.47611286,3853.1,3853.0,3.852]
[1761249958410,7.47611286,3853.1,3853.0,0.002]
[1761249958606,7.98299286,3853.1,3853.0,0.002]
[1761249964641,4.88699286,3853.1,3853.0,0.002]
[1761249964819,2.59631286,3853.1,3853.0,0.002]
[1761249965141,7.63951286,3853.1,3853.0,0.002]
[1761249965344,6.08431286,3853.1,3853.0,0.002]
[1761249965645,0.001,3853.1,3853.0,0.002]
[1761249965939,7.63951286,3853.1,3853.0,0.002]
[1761249967470,7.54051286,3853.1,3853.0,0.002]
[1761249967940,0.001,3853.1,3853.0,0.002]
[1761249968263,5.98531286,3853.1,3853.0,0.002]
[1761249968461,7.54051286,3853.1,3853.0,0.002]
[1761249968639,4.15151286,3853.1,3853.0,0.002]
[1761249968837,7.54051286,3853.1,3853.0,0.002]
[1761249969031,4.9452,3853.1,3853.0,0.002]
[1761249969250,0.001,3853.1,3853.0,0.002]
[1761249969453,3.39,3853.1,3853.0,0.4552]
[1761249969962,3.39,3853.1,3853.0,3.05058022]
[1761249970154,3.39,3853.1,3853.0,3.61519462]
[1761249970354,0.001,3853.1,3853.0,3.61519462]
[1761249970554,3.39,3853.1,3853.0,3.61519462]
[1761249970971,0.001,3853.1,3853.0,3.61519462]
[1761249971137,0.001,3853.1,3853.0,4.19960695]
[1761249971331,0.001,3853.1,3853.0,4.17365315]
[1761249971630,0.001,3853.1,3853.0,5.72885315]
[1761249971843,0.001,3853.1,3853.0,6.65925031]
[1761249972042,0.001,3853.1,3853.0,5.10405031]
[1761249972365,0.001,3853.1,3853.0,4.17365315]
[1761249972865,0.001,3853.1,3853.0,4.87125803]
[1761249973364,0.001,3853.1,3853.0,4.17365315]
[1761249974166,0.001,3853.1,3853.0,1.57827293]
[1761249974470,2.59631286,3853.1,3853.0,0.002]
[1761249975055,4.25191286,3853.1,3853.0,0.002]
[1761249975358,4.88839286,3853.1,3853.0,0.002]
[1761249975860,2.19268,3853.1,3853.0,0.002]
[1761249976072,3.389,3853.1,3853.0,0.002]
[1761249976241,6.08471286,3853.1,3853.0,0.002]
[1761249976570,7.63991286,3853.1,3853.0,0.002]
[1761249977384,7.53951286,3853.1,3853.0,0.002]
[1761249977543,4.9442,3853.1,3853.0,0.002]
[1761249978054,4.9492,3853.1,3853.0,0.002]
[1761249978244,7.54451286,3853.1,3853.0,0.002]
[1761249978445,4.9482,3853.1,3853.0,0.002]
[1761249979482,7.54351286,3853.1,3853.0,0.002]
[1761249981242,7.64391286,3853.1,3853.0,0.002]
[1761249984866,7.64391286,3853.1,3852.2,0.002]
[1761249984867,17.84828307,3853.1,3852.2,0.002]
[1761249985062,3.10279921,3852.2,3851.3,0.002]
[1761249985363,14.509059,3851.8,3851.3,0.002]
[1761249985888,14.737659,3851.8,3851.3,0.002]
[1761249986200,14.230779,3851.8,3851.3,0.002]
[1761249986398,14.737659,3851.8,3851.3,0.002]
[1761249986597,20.073659,3851.8,3851.3,0.002]
[1761249986895,14.737659,3851.8,3851.3,0.002]
[1761249987087,20.073659,3851.8,3851.3,0.002]
[1761249988191,2.59645843,3851.4,3851.3,0.002]
[1761249988376,7.67025843,3851.4,3851.3,0.002]
[1761249988696,7.76925843,3851.4,3851.3,0.002]
[1761249990681,4.88713843,3851.4,3851.3,0.002]
[1761249990884,10.22313843,3851.4,3851.3,0.002]
[1761249991082,10.35300781,3851.4,3851.3,0.002]
[1761249991492,10.35300781,3851.4,3847.8,0.2372]
[1761249991493,0.1675,3850.5,3847.8,0.2372]
[1761249991820,0.1675,3850.5,3846.9,0.92200488]
[1761249991821,2.59870228,3848.1,3847.5,0.2244]
[1761249992023,2.59885094,3847.9,3847.5,0.2244]
[1761249992322,1.947,3848.2,3847.5,0.2244]
[1761249992323,5.99089191,3847.8,3847.5,0.2244]
[1761249992640,2.59910679,3847.5,3847.1,0.4453]
[1761249992792,1.5552,3847.4,3847.1,0.6697]
[1761249992983,3.391,3847.3,3847.1,0.6697]
[1761249993893,3.391,3847.3,3847.2,0.4453]
[1761249994223,3.392,3847.3,3847.2,0.4453]
[1761249994625,9.69749021,3849.1,3847.2,0.4453]
[1761249994826,0.1624,3850.0,3847.2,0.4453]
[1761249994827,0.2566,3849.9,3847.2,0.4453]
[1761249994986,1.948,3849.3,3847.2,0.4453]
[1761249995186,2.59800992,3849.1,3848.1,2.59866336]
[1761249995392,0.099,3849.8,3848.2,0.25986634]
[1761249995740,5.341,3849.7,3847.4,0.50688]
[1761249996035,2.59788621,3849.3,3848.3,2.59850194]
[1761249996235,3.393,3849.2,3848.3,0.25985019]
[1761249996437,3.393,3849.2,3848.5,2.59839539]
[1761249996731,3.393,3849.2,3848.4,0.6697]
[1761249996935,5.99095177,3849.2,3848.4,0.6697]
[1761249997137,3.393,3849.2,3848.4,0.6697]
[1761249997303,2.59800992,3849.1,3848.4,0.6697]
[1761249997496,5.99096379,3849.2,3848.4,0.6697]
[1761249997697,2.59800992,3849.1,3848.4,0.6697]
[1761249998300,3.393,3849.2,3848.5,2.59836079]
[1761249998498,0.50688,3849.9,3849.1,0.2244]
[1761249998815,1.5552,3849.2,3849.1,0.2244]
[1761249999018,4.9472,3849.2,3849.1,0.2244]
[1761249999222,7.54514242,3849.2,3849.1,0.2244]
[1761249999409,7.54514242,3849.2,3848.6,0.4453]
[1761249999608,4.15314242,3849.2,3848.6,0.4453]
[1761249999809,3.391,3849.1,3848.6,0.4453]
[1761250001036,3.391,3849.0,3848.6,0.4453]
[1761250001195,3.391,3848.9,3848.5,2.59840981]
[1761250001703,3.391,3848.9,3848.8,0.1296]
[1761250007953,2.59795542,3849.2,3848.8,0.5749]
[1761250008279,3.392,3848.9,3848.8,0.5749]
[1761250008631,1.949,3850.3,3848.8,0.89222394]
[1761250008830,1.949,3850.3,3849.2,0.1296]
[1761250008831,0.1296,3849.7,3849.2,0.1296]
[1761250009053,3.392,3849.6,3849.2,0.1296]
[1761250009255,3.392,3849.6,3849.3,0.2244]
[1761250009454,1.5552,3849.6,3849.3,0.2244]
[1761250009659,3.392,3849.5,3849.3,0.2244]
[1761250009860,3.392,3849.5,3849.3,0.6697]
[1761250010561,3.392,3849.4,3849.3,0.6697]
[1761250011561,3.392,3849.4,3849.3,0.4197]
[1761250011769,4.15307493,3849.3,3849.2,0.1296]
[1761250011932,2.59841496,3848.5,3848.4,0.002]
[1761250012136,5.99041496,3848.5,3848.4,0.002]
[1761250012865,6.27271496,3848.5,3848.4,0.002]
[1761250013239,7.82791496,3848.5,3848.4,0.002]
[1761250014146,8.33479496,3848.5,3848.4,0.002]
[1761250014571,18.03228517,3848.5,3848.4,0.002]
[1761250015742,3.10556506,3848.1,3848.0,1e-08]
[1761250016072,4.66103522,3847.7,3847.6,0.002]
[1761250016239,4.66103522,3847.7,3845.1,0.6913999]
[1761250016240,0.50688,3847.5,3845.3,0.4453]
[1761250016578,1.5552,3847.6,3845.3,0.58140999]
[1761250016579,2.60029543,3845.8,3845.3,0.58140999]
[1761250016742,3.392,3845.7,3845.3,0.4453]
[1761250017043,2.59994096,3846.3,3845.3,0.4453]
[1761250017044,3.392,3845.6,3845.3,0.4453]
[1761250018670,3.392,3845.6,3845.0,0.2244]
[1761250018671,3.392,3845.6,3845.0,0.6697]
[1761250018851,3.392,3845.6,3845.3,0.4453]
[1761250021674,3.392,3845.6,3845.3,3.0458613]
[1761250021973,3.392,3845.6,3845.4,0.1304]
[1761250022180,0.1304,3846.0,3845.4,0.1304]
[1761250022378,0.2298,3847.5,3845.5,0.02600442]
[1761250022578,0.2298,3847.5,3845.4,0.7655328]
[1761250022579,0.2298,3847.7,3845.6,1.00388529]
[1761250022777,0.42,3847.6,3845.7,0.55598529]
[1761250023086,0.42,3847.6,3846.4,2.59980804]
[1761250023246,0.42,3847.6,3846.5,0.6843]
[1761250023591,0.42,3847.6,3846.5,3.28403467]
[1761250023770,2.59868506,3848.1,3846.6,0.4479]
[1761250023971,1.5552,3847.9,3846.7,0.35440701]
[1761250024143,2.59900674,3847.7,3846.8,2.59950561]
[1761250024345,1.5552,3847.5,3846.8,2.59950561]
[1761250024541,1.5552,3847.3,3846.9,3.04738684]
[1761250024785,1.5552,3847.3,3846.9,0.4479]
[1761250025082,3.393,3847.2,3847.0,0.4479]
[1761250025251,3.393,3847.1,3847.0,0.4479]
[1761250025448,3.393,3847.1,3846.5,0.2364]
[1761250025449,3.393,3847.1,3846.5,2.83615508]
[1761250025654,3.393,3847.1,3846.6,2.59969843]
[1761250025888,3.393,3847.1,3846.6,3.04759087]
[1761250026094,3.393,3847.1,3846.6,0.4479]
[1761250026244,0.2298,3848.2,3846.6,0.4479]
[1761250026245,0.2298,3848.2,3846.7,0.4479]
[1761250026575,2.59903541,3847.6,3846.7,0.4479]
[1761250026749,3.393,3847.5,3846.7,0.4479]
[1761250026951,2.59935835,3847.2,3846.5,0.2364]
[1761250027151,5.99237694,3847.1,3846.5,0.2364]
[1761250027491,3.393,3847.1,3846.6,0.4479]
[1761250027861,3.393,3847.0,3846.6,0.4479]
[1761250028180,3.393,3846.9,3846.6,0.4479]
[1761250028365,4.15429962,3847.5,3846.6,0.4479]
[1761250028564,2.59934589,3847.2,3846.6,0.4479]
[1761250030060,0.1508,3847.2,3846.5,0.002]
[1761250030256,1.5552,3846.6,3846.5,0.002]
[1761250030480,4.9482,3846.6,3846.5,0.002]
[1761250030999,7.54789843,3846.6,3846.5,0.002]
[1761250031481,1.5552,3846.6,3846.5,0.002]
[1761250031791,4.9482,3846.6,3846.5,0.002]
[1761250032001,2.74990496,3847.5,3846.5,0.002]
[1761250032002,0.1508,3848.5,3846.5,0.4499]
[1761250032153,0.2298,3847.8,3846.6,2.59967375]
[1761250032357,1.5552,3847.4,3847.0,0.1296]
[1761250032576,0.1296,3847.6,3847.0,0.1296]
[1761250032577,3.393,3847.3,3847.0,0.1296]
[1761250032891,3.393,3847.2,3847.1,0.2364]
[1761250033396,3.393,3847.2,3847.0,0.1296]
[1761250033597,3.393,3847.2,3847.1,0.4479]
[1761250034282,0.1296,3847.6,3847.0,0.1296]
[1761250034479,0.1296,3847.6,3847.1,0.5775]
[1761250034480,3.393,3847.5,3847.1,0.5775]
[1761250034693,1.5552,3847.4,3847.3,0.1296]
[1761250036582,1.5552,3847.5,3847.3,0.1296]
[1761250036801,3.393,3847.4,3847.3,0.1296]
[1761250037107,3.393,3847.4,3847.3,0.5775]
[1761250037316,0.50688,3848.7,3847.3,0.89517918]
[1761250037486,0.379,3848.8,3847.8,0.1296]
[1761250037487,2.59860677,3848.3,3847.8,0.1296]
[1761250037667,3.393,3848.2,3847.8,0.1296]
[1761250037870,1.5552,3848.1,3847.8,0.1296]
[1761250038070,0.001,3849.3,3847.9,0.4479]
[1761250038271,0.001,3849.3,3848.1,0.2364]
[1761250038272,2.59839637,3848.6,3848.1,0.2364]
[1761250038467,2.59839637,3848.6,3847.6,0.2364]
[1761250038468,1.5552,3848.6,3847.6,0.2364]
[1761250038680,2.59860377,3848.3,3847.6,2.83537974]
[1761250038898,3.393,3848.2,3847.6,2.83537974]
[1761250039301,3.393,3848.2,3847.6,0.2364]
[1761250039489,3.393,3848.2,3847.6,2.83540803]
[1761250039689,3.393,3848.2,3847.7,2.59894229]
[1761250039884,3.393,3848.2,3847.7,0.4479]
[1761250040084,3.393,3848.2,3847.8,0.4479]
[1761250040282,3.393,3848.1,3847.8,0.4479]
[1761250040680,3.393,3848.1,3847.6,0.2364]
[1761250040882,1.5552,3848.0,3847.6,0.2364]
[1761250041083,2.59909031,3847.5,3846.5,0.002]
[1761250041407,4.15489843,3846.6,3846.5,0.002]
[1761250041706,7.54689843,3846.6,3846.5,0.002]
[1761250041923,4.9472,3846.6,3846.5,0.002]
[1761250042121,7.54689843,3846.6,3846.5,0.002]
[1761250042324,7.69919843,3846.6,3846.5,0.002]
[1761250042623,8.20607843,3846.6,3846.5,0.002]
[1761250042824,17.81462607,3846.6,3846.5,0.0005]
[1761250043024,17.81462607,3846.6,3846.1,0.002]
[1761250043025,3.1068488,3846.2,3846.1,0.002]
[1761250043228,3.1068488,3846.2,3843.7,0.4479]
[1761250043229,4.66231922,3845.8,3843.7,0.4479]
[1761250043429,8.05431922,3845.8,3843.7,0.4479]
[1761250043618,10.00431922,3845.8,3844.3,0.2364]
[1761250043932,10.14941922,3845.8,3844.3,0.2364]
[1761250044593,10.15041922,3845.8,3844.2,0.2364]
[1761250044792,4.80741922,3845.8,3844.6,2.60103218]
[1761250045021,10.14941922,3845.8,3844.5,0.4479]
[1761250045326,10.14941922,3845.8,3844.2,0.2364]
[1761250045526,10.14941922,3845.8,3843.8,0.6843]
[1761250045896,10.14941922,3845.8,3844.2,0.2364]
[1761250046726,10.00531922,3845.8,3845.1,0.2345]
[1761250046897,10.15041922,3845.8,3845.1,0.2345]
[1761250047230,10.15041922,3845.8,3844.4,0.4459]
[1761250047443,10.15041922,3845.8,3845.6,0.002]
[1761250048199,10.28081922,3845.8,3845.6,0.002]
[1761250048526,4.80748683,3845.7,3845.6,1e-08]
[1761250049298,3.10718683,3845.7,3845.6,1e-08]
[1761250049502,8.33088683,3845.7,3845.6,1e-08]
[1761250050829,17.80903447,3845.7,3845.6,1e-08]
[1761250051028,1.7003,3845.6,3842.7,0.4304]
[1761250051215,2.06208,3843.5,3842.7,3.03273515]
[1761250051414,0.50688,3843.3,3842.7,0.4304]
[1761250051615,0.50688,3843.3,3842.6,2.60240127]
[1761250051929,3.394,3843.2,3843.1,2.60206604]
[1761250052229,3.394,3843.2,3843.1,0.2166]
[1761250052405,2.06208,3843.1,3842.5,0.2166]
[1761250052605,0.50688,3843.0,3842.5,0.2166]
[1761250052812,4.9512,3842.9,3842.5,0.2166]
[1761250053396,4.9512,3842.9,3842.5,0.647]
[1761250053921,1.5552,3842.7,3842.6,0.4304]
[1761250054117,3.396,3842.7,3842.6,0.4304]
[1761250054498,3.396,3842.7,3842.6,3.03280462]
[1761250054699,0.50688,3844.1,3842.6,0.4304]
[1761250054931,1.5552,3843.9,3843.1,2.60202194]
[1761250055130,1.5552,3843.9,3843.2,0.647]
[1761250055320,1.5552,3843.9,3843.2,3.24897969]
[1761250055524,1.5552,3843.9,3843.3,0.4304]
[1761250055834,1.5552,3843.7,3843.3,0.4304]
[1761250056135,1.5552,3844.3,3843.5,2.60179523]
[1761250056302,1.5552,3844.1,3843.6,2.60171531]
[1761250056503,0.226,3844.8,3843.4,0.4304]
[1761250056733,2.60105441,3844.6,3843.6,2.60167823]
[1761250056935,2.60105441,3844.6,3843.4,0.4304]
[1761250056936,4.9502,3844.5,3843.8,2.60154336]
[1761250057146,0.50688,3844.4,3843.8,2.60154336]
[1761250057446,3.395,3844.3,3843.8,3.03194336]
[1761250057620,1.5552,3844.2,3843.9,0.4304]
[1761250058119,1.5552,3844.2,3844.1,0.2166]
[1761250058455,2.60045287,3845.5,3844.1,2.81798383]
[1761250058456,1.5552,3844.9,3844.1,2.81798383]
[1761250058743,0.50688,3844.6,3844.1,0.2166]
[1761250058949,1.5552,3844.7,3844.1,0.2166]
[1761250059118,0.50688,3844.6,3844.1,0.2166]
[1761250059316,0.50688,3844.3,3843.5,2.60179181]
[1761250059548,1.5552,3844.1,3843.6,2.60171261]
[1761250059746,1.5552,3843.9,3843.7,3.03204272]
[1761250059946,1.5552,3843.9,3843.7,0.4304]
[1761250060149,1.5552,3843.9,3843.6,2.60170431]
[1761250060321,1.5552,3843.9,3843.8,0.4304]
[1761250060521,0.3132,3845.2,3843.8,0.4304]
[1761250060726,0.3132,3845.2,3843.9,2.60147977]
[1761250060727,0.50688,3844.8,3843.9,2.60147977]
[1761250060931,1.418,3844.7,3844.2,0.1304]
[1761250061215,0.1304,3844.8,3844.2,0.1304]
[1761250061421,1.5552,3844.5,3844.3,0.2166]
[1761250061946,1.5552,3844.5,3844.2,0.1304]
[1761250062526,1.5552,3844.5,3844.2,0.5608]
[1761250063440,1.5552,3844.5,3844.2,0.1304]
[1761250063950,0.50688,3844.4,3843.4,0.4304]
[1761250064150,4.15656118,3844.2,3843.8,0.1304]
[1761250064448,0.50688,3843.8,3842.9,0.4304]
[1761250064675,4.9502,3843.7,3842.0,2.83725127]
[1761250064821,0.1002,3844.9,3843.3,0.4564193]
[1761250065022,1.5552,3844.1,3843.3,0.4304]
[1761250065242,0.50688,3843.8,3842.8,0.4304]
[1761250065521,3.395,3843.7,3843.3,2.60191765]
[1761250065748,3.395,3843.6,3843.3,0.58509821]
[1761250066049,3.395,3843.6,3843.2,0.647]
[1761250066050,3.395,3843.5,3843.4,3.03226293]
[1761250066234,1.5552,3844.3,3843.6,2.60171612]
[1761250066428,3.395,3844.2,3843.5,0.4304]
[1761250066641,3.395,3844.2,3843.7,2.60165953]
[1761250066851,0.2142,3845.2,3844.1,0.2166]
[1761250067027,0.50688,3844.5,3844.1,0.2166]
[1761250067223,3.395,3844.4,3844.1,0.2166]
[1761250067565,3.395,3844.3,3844.1,0.647]
[1761250067734,3.395,3844.2,3844.1,0.647]
[1761250067918,0.50688,3844.9,3844.1,0.2166]
[1761250068117,0.50688,3844.7,3844.1,0.2166]
[1761250068419,0.50688,3844.2,3843.3,0.4304]
[1761250068642,2.60154615,3843.9,3843.2,0.2166]
[1761250068851,2.60162648,3843.8,3843.2,0.2166]
[1761250069058,3.395,3843.7,3843.2,0.2166]
[1761250069258,0.50688,3843.5,3843.1,0.002]
[1761250069623,2.60190833,3843.4,3843.1,0.002]
[1761250069825,3.395,3843.3,3843.1,0.002]
[1761250070019,5.99694597,3843.3,3843.1,0.002]
[1761250070453,3.395,3843.3,3843.1,0.002]
[1761250070768,0.35002741,3845.2,3843.3,2.60186884]
[1761250071050,2.60172181,3843.7,3843.1,0.002]
[1761250071240,0.50688,3843.6,3843.1,2.82062317]
[1761250071432,3.395,3843.5,3843.2,3.03233704]
[1761250071765,1.5552,3844.1,3843.2,3.03233704]
[1761250071766,3.395,3843.4,3843.3,2.60193063]
[1761250072061,0.50688,3844.1,3843.3,0.4304]
[1761250072273,0.50688,3843.8,3843.1,0.002]
[1761250072481,2.60197318,3843.3,3843.1,0.002]
[1761250072680,3.395,3843.2,3843.1,0.002]
[1761250073858,3.395,3843.2,3843.1,3.25106604]
[1761250074051,0.2199,3844.0,3843.1,0.649]
[1761250074249,8.05860466,3843.9,3843.1,0.649]
[1761250074448,3.10858664,3843.7,3843.3,0.1304]
[1761250075272,1.5552,3843.5,3843.3,0.1304]
[1761250075578,3.395,3843.4,3843.3,0.1304]
[1761250078593,1.6856,3843.8,3843.3,0.5608]
[1761250078882,3.395,3843.7,3843.4,0.4457]
[1761250079051,3.395,3843.6,3843.4,0.4457]
[1761250079450,0.1304,3843.9,3843.4,0.4457]
[1761250079698,3.395,3843.8,3843.4,3.37522812]
[1761250079902,0.567,3843.7,3843.6,0.1304]
[1761250080106,3.395,3843.7,3843.6,0.1304]
[1761250080894,2.60139157,3844.1,3843.6,0.1304]
[1761250081094,3.395,3844.0,3843.6,0.5761]
[1761250081406,1.5552,3843.9,3843.6,0.1304]
[1761250081808,3.395,3843.8,3843.6,0.1304]
[1761250082675,0.2244,3844.9,3843.6,0.84932421]
[1761250082889,1.5552,3844.5,3843.6,0.4457]
[1761250083184,1.5552,3844.5,3843.9,2.73192056]
[1761250083185,1.393,3844.4,3843.9,2.73192056]
[1761250083512,0.50688,3844.3,3843.9,0.1304]
[1761250083811,0.50688,3844.1,3844.0,3.85]
[1761250083994,0.50688,3844.1,3843.6,0.1304]
[1761250084480,3.10828944,3844.1,3843.6,0.1304]
[1761250084804,2.60147116,3844.0,3843.6,0.1304]
[1761250084974,3.395,3843.9,3843.6,0.1304]
[1761250085416,5.99653266,3843.9,3843.6,0.1304]
[1761250086078,3.395,3843.9,3843.6,0.1304]
[1761250086977,3.395,3843.9,3843.6,3.17780806]
[1761250087169,3.395,3843.9,3843.6,0.5761]
[1761250087795,3.395,3843.9,3843.7,0.4457]
[1761250088709,3.395,3843.9,3843.6,0.1304]
[1761250089110,3.395,3843.9,3843.7,3.85]
[1761250091410,3.395,3843.8,3843.7,3.85]
[1761250091635,0.50688,3844.5,3843.8,0.4457]
[1761250091793,2.19248,3844.3,3843.8,0.4457]
[1761250094406,3.395,3843.6,3843.5,3.585133]
[1761250094940,2.60098753,3844.7,3843.9,2.60149988]
[1761250095141,0.73128,3844.8,3843.6,4.2957]
[1761250095142,5.45608,3844.6,3843.6,4.2957]
[1761250095311,2.60116288,3844.5,3843.8,2.60156539]
[1761250095641,2.60116288,3844.5,3843.9,2.60151702]
[1761250095833,2.60119584,3844.4,3843.8,2.60157816]
[1761250096143,2.60102469,3844.7,3844.0,2.60140211]
[1761250096328,3.394,3844.6,3844.1,0.215]
[1761250096505,4.9492,3844.6,3844.1,2.84236765]
[1761250096708,3.394,3844.6,3844.1,3.28806765]
[1761250096913,2.60054427,3845.4,3844.6,2.60101115]
[1761250097110,0.001,3845.6,3844.3,0.69657901]
[1761250097334,3.30546153,3845.5,3844.8,2.6008685]
[1761250097522,0.705,3845.5,3844.9,2.600839]
[1761250098645,3.30544413,3845.5,3844.8,2.60089455]
[1761250098846,0.705,3845.5,3844.8,2.60089455]
[1761250099141,3.30546611,3845.5,3844.6,0.4457]
[1761250099341,0.705,3845.5,3844.7,2.60098317]
[1761250099511,0.705,3845.5,3844.8,2.60091552]
[1761250099858,0.705,3845.5,3844.9,2.60081721]
[1761250100156,0.50788,3845.6,3844.8,2.60091552]
[1761250100308,3.394,3845.4,3844.9,0.4457]
[1761250100507,3.394,3845.4,3844.6,2.60102513]
[1761250100742,3.394,3845.4,3844.4,0.4457]
[1761250100929,3.394,3845.4,3844.9,2.60080697]
[1761250101133,3.10827408,3845.6,3844.5,0.34571599]
[1761250101134,0.001,3845.6,3845.3,0.215]
[1761250101447,0.001,3845.6,3844.5,0.34571599]
[1761250101448,3.394,3845.5,3845.0,2.81571697]
[1761250101749,3.394,3845.5,3845.3,2.60057171]
[1761250101945,3.394,3845.5,3845.4,2.60050969]
[1761250102118,3.394,3845.5,3845.4,6.45050969]
[1761250102743,3.394,3845.5,3845.4,6.89620969]
[1761250102945,3.394,3845.5,3845.4,7.97628988]
[1761250103221,0.001,3845.6,3845.5,2.60044207]
[1761250103434,0.001,3845.6,3845.5,6.89614207]
[1761250108451,0.001,3845.6,3845.5,8.45134207]
[1761250108650,0.001,3845.6,3845.5,10.78754084]
[1761250109044,0.001,3846.0,3845.9,4.15537161]
[1761250109045,1e-08,3846.0,3845.9,4.15537161]
[1761250109354,0.001,3846.6,3846.5,2.59976602]
[1761250109563,0.001,3846.6,3846.5,12.8532071]
[1761250109734,0.001,3846.6,3846.5,13.3222071]
[1761250110623,0.001,3847.0,3846.9,2.59949569]
[1761250110862,0.001,3847.0,3846.9,4.15469569]
[1761250111066,0.001,3847.0,3846.9,4.62369569]
[1761250111273,0.001,3847.0,3846.9,5.34602311]
[1761250113578,1.6606,3849.0,3847.3,2.59922543]
[1761250113780,0.50688,3848.9,3847.3,12.332705]
[1761250113972,0.27,3848.1,3847.3,12.801705]
[1761250114471,1.556,3848.0,3847.3,12.801705]
[1761250115154,3.7282,3848.7,3847.3,12.801705]
[1761250115478,0.3372,3848.6,3847.3,12.801705]
[1761250115846,0.1054,3849.0,3847.3,14.356905]
[1761250116049,2.501,3848.5,3847.3,16.0752363]
[1761250116244,2.501,3848.5,3847.3,5.87275673]
[1761250116473,0.3372,3848.3,3847.3,4.15442543]
[1761250116675,0.3372,3848.3,3847.3,4.62342543]
[1761250118451,0.3372,3848.3,3847.3,4.75302543]
[1761250118782,0.50688,3848.7,3847.3,4.75302543]
[1761250118983,0.1296,3848.8,3847.3,14.486505]
[1761250119278,0.078,3847.9,3847.3,4.75302543]
[1761250119466,0.078,3847.9,3847.3,5.51096877]
[1761250120655,0.376,3847.9,3847.3,5.51096877]
[1761250120857,0.376,3847.9,3847.3,9.36096877]
[1761250121256,3.39,3847.9,3847.3,8.89196877]
[1761250121679,0.336,3848.2,3847.3,8.89196877]
[1761250121880,3.39,3847.9,3847.3,7.80576877]
[1761250122102,0.336,3848.2,3847.3,7.80576877]
[1761250122269,0.2239,3847.8,3847.3,3.9796]
[1761250122472,0.3348,3847.4,3847.3,6.57882543]
[1761250122760,0.001,3847.4,3847.3,6.57882543]
[1761250123197,0.001,3847.4,3847.3,7.04782543]
[1761250123397,0.001,3847.4,3847.3,8.98588648]
[1761250126764,0.001,3847.4,3847.3,10.54108648]
[1761250127097,0.001,3847.4,3847.3,6.69108648]
[1761250127799,0.001,3847.8,3847.7,2.59895522]
[1761250128001,0.001,3847.8,3847.7,12.33243479]
[1761250128169,0.001,3847.8,3847.7,14.80047753]
[1761250128616,0.001,3847.8,3847.7,15.49527595]
[1761250128980,0.001,3847.8,3847.7,17.05047595]
[1761250129186,0.001,3847.8,3847.7,16.35567753]
[1761250131697,0.001,3847.8,3847.7,17.74549078]
[1761250132391,0.001,3847.8,3847.7,16.35567753]
[1761250133986,0.001,3847.8,3847.7,19.74467753]
[1761250134393,0.001,3847.8,3847.7,15.88667753]
[1761250134594,0.001,3847.8,3847.7,16.35567753]
[1761250136940,0.001,3847.8,3847.7,19.74367753]
[1761250137253,0.001,3847.8,3847.7,29.96367753]
[1761250137822,0.001,3847.8,3847.7,29.49467753]
[1761250138230,0.001,3847.8,3847.7,29.96367753]
[1761250138547,0.001,3847.8,3847.7,31.80619628]
[1761250138851,0.001,3847.8,3847.7,29.96367753]
[1761250140347,0.001,3848.2,3848.1,2.59868506]
[1761250140555,0.001,3848.2,3848.1,8.34848506]
[1761250140761,0.001,3848.2,3848.1,10.65475199]
[1761250141346,0.001,3848.2,3848.1,8.78988506]
[1761250141547,0.001,3849.3,3849.2,2.59794242]
[1761250141713,0.001,3849.3,3849.2,4.64547]
[1761250141913,0.001,3849.3,3849.2,3.24713886]
[1761250142113,0.2139,3849.3,3849.2,4.64534679]
[1761250142387,0.2139,3849.3,3849.2,3.24713886]
[1761250142515,0.2139,3849.3,3849.2,2.72754242]
[1761250142931,0.2139,3849.3,3849.2,0.69887609]
[1761250143136,0.2139,3849.3,3849.2,2.59794242]
[1761250143347,0.2139,3849.3,3849.2,3.29681851]
[1761250144231,0.2139,3849.3,3849.2,2.59794242]
[1761250145531,3.6009,3849.3,3849.2,2.59794242]
[1761250149980,0.001,3849.3,3849.2,2.59794242]
[1761250150284,0.001,3849.3,3849.2,3.78421837]
[1761250150573,0.668,3849.3,3849.2,3.78421837]
[1761250150868,0.668,3849.3,3849.2,4.48278499]
[1761250152073,0.001,3849.3,3849.2,4.48278499]